{"text_format":"1","workbook":"xlsx","n_sheets":13,"sheets":["Tabela 1 Struktura ulaganja","Tabela 2 Prihodi","Tabela  3 - Mat. troškovi","Tabela 4 - Bruto zarade","Tabela 5 - Amortizacija","Tabela 6 - Plan otplate kredita","Tabela 7 - Ostali troškovi","Tabela 8 -Projekcija bilansa ","Tabela 9 Ekonomski tok","Tabela 10 - NSV","Tabela 11 IRR","Tabela 11 - Period povrata","Tabela 12 - Finansijski tok"],"not_rendered":{"charts":1,"images":0,"macros":1,"external_links":0,"defined_names":10,"comments":0,"pivot_tables":0},"unopened":[],"bounds":{"document_bytes":16777216,"sheet_cells":100000,"rows_first":2000,"rows_last":500,"rows_between":2000,"halvings":0,"cell_chars":16384,"cell_head_chars":4096},"cells_cut":0,"cells_raw":0,"read":"whole","date_system":"1900"}

{"sheet":"Tabela 1 Struktura ulaganja","index":0,"n_rows":4,"n_cols":5,"rows_kept":4,"cut":false,"hidden":false,"merged":[]}
["rb","struktura ulaganja","kredit","sopstvene učešće","UKUPNO"]
[null,"Građevinski objekat",0,0,{"$f":"SUM(C2:D2)","v":0}]
[null,"Oprema",0,0,{"$f":"SUM(C3:D3)","v":0}]
[1,"UKUPNO",{"$f":"SUM(C2:C3)","v":0},{"$f":"SUM(D2:D3)","v":0},{"$f":"D4+C4","v":0}]

{"sheet":"Tabela 2 Prihodi","index":1,"n_rows":35,"n_cols":20,"rows_kept":35,"cut":false,"hidden":false,"merged":[[28,0,28,2],[29,0,29,1],[0,3,0,12],[17,0,17,2],[15,0,15,2],[16,0,16,2],[18,0,22,12],[16,4,16,12]]}
[null,null,null,"GODINE (Unijeti planiranu količinu proizvodnje po godinama - za minimum 5 godina)"]
["Naziv proizvoda / usluge","jed. mjere","Cijena",1,2,3,4,5,6,7,8,9,10,null,null,null,null,null,null,"  "]
[]
[]
[]
[]
[]
[]
[]
[]
[]
[]
[]
[]
[]
["SUBVENCIJE *"]
["IPARD  **"]
["UKUPNO PRIHOD PO GODINAMA",null,null,{"$f":"SUMPRODUCT(D3:D15,$C$3:$C$15)+D16+D17","v":0},{"$f":"SUMPRODUCT(E3:E15,$C$3:$C$15)+E16","v":0},{"$f":"SUMPRODUCT(F3:F15,$C$3:$C$15*(100%+$C$30))+F16","v":0},{"$f":"SUMPRODUCT(G3:G15,$C$3:$C$15*(100%+$C$30)^E2)+G16","v":0},{"$f":"SUMPRODUCT(H3:H15,$C$3:$C$15*(100%+$C$30)^F2)+H16","v":0},0,0,0,0,0]
["Upisati naziv proizvoda i usluge, jedinicu mjere i cijenu pojedinačnog proizvoda. U sivo obojenom dijelu tabele potrebno je unijeti planiranu količinu proizvodnje po godinama. Potrebno je upisati plan za minimum 5 godina ili ukoliko se projekat finansira iz kredita, potrebno upisati planiranu proizvodnju za sve godine otplate kredita. Za svaku sljedeću tabelu je potrebno upisati isti broj godina.                                                                                                                                                                     * upisati i plan prihoda od subvencija od države (samo kvantifikovati) i to po godinama, a potrebno iste i opisati u dijelu teksta 5.3. Upisivati samo iznose direktno po godinama - u sivo obojenom dijelu tabele. \n** upisati i plan prihoda od IPARD (samo kvantifikovati) i to po godinama, a potrebno iste i opisati u dijelu teksta 5.4,\n"]
[]
[]
[]
[]
[]
[]
[]
[]
[]
["Ispunjava Evaluator",null,null,null,null,null,"  ",null,null,null,null,null,null,null,null,0.01]
["Procenat povećanja(max 4%)",null,null,null,null,null,null,null,null,null,null,null,null,null,null,1.4999999999999999E-2]
[null,null,null,null,null,null,null,null,null,null,null,null,null,null,null,0.02]
[null,null,null,null,null,null,null,null,null,null,null,null,null,null,null,2.5000000000000001E-2]
[null,null,null,null,null,null,null,null,null,null,null,null,null,null,null,0.03]
[null,null,null,null,null,null,null,null,null,null,null,null,null,null,null,3.5000000000000003E-2]
[null,null,null,null,null,null,null,null,null,null,null,null,null,null,null,0.04]

{"sheet":"Tabela  3 - Mat. troškovi","index":2,"n_rows":31,"n_cols":16,"rows_kept":31,"cut":false,"hidden":false,"merged":[[0,3,0,12],[13,0,13,2],[14,0,16,12],[24,0,24,2],[25,0,25,1]]}
[null,null,null,"GODINE (Unijeti planiranu količinu materijalnih troškova po godinama - za minimum 5 godina). Unijeti isti broj godina kao u tabeli 2"]
["Naziv troška","jed. mjere","Cijena",1,2,3,4,5,6,7,8,9,10]
[]
[]
[]
[]
[]
[]
[]
[]
[]
[]
[]
["UKUPNO TROŠAK PO GODINAMA",null,null,{"$f":"SUMPRODUCT(D3:D13,$C$3:$C$13)","v":0},{"$f":"SUMPRODUCT(E3:E13,$C$3:$C$13)","v":0},{"$f":"SUMPRODUCT(F3:F13,$C$3:$C$13)*(100%+$C$26)","v":0},{"$f":"SUMPRODUCT(G3:G13,$C$3:$C$13)*(100%+$C$26)^E2","v":0},{"$f":"SUMPRODUCT(H3:H13,$C$3:$C$13)*(100%+$C$26)^F2","v":0},0,0,0,0,0]
["Upisati  materijalnog troška (npr. gorivo, sjeme itd), jedinicu mjere i cijenu pojedinačnog troška. U sivo obojenom dijelu tabele potrebno je unijeti planiranu količinu materijalnih troškova po godinama. Potrebno je upisati plan za minimum 5 godina ili ukoliko se projekat finansira iz kredita, potrebno upisati planiranu proizvodnju za sve godine otplate kredita.                                                                                                                                                                                                        "]
[]
[]
[]
[]
[]
[]
[]
[]
[]
["Ispunjava Evaluator",null,null,null,null,null,"  ",null,null,null,null,null,null,null,null,0.01]
["Procenat povećanja(max 4%)",null,null,null,null,null,null,null,null,null,null,null,null,null,null,1.4999999999999999E-2]
[null,null,null,null,null,null,null,null,null,null,null,null,null,null,null,0.02]
[null,null,null,null,null,null,null,null,null,null,null,null,null,null,null,2.5000000000000001E-2]
[null,null,null,null,null,null,null,null,null,null,null,null,null,null,null,0.03]
[null,null,null,null,null,null,null,null,null,null,null,null,null,null,null,3.5000000000000003E-2]
[null,null,null,null,null,null,null,null,null,null,null,null,null,null,null,0.04]

{"sheet":"Tabela 4 - Bruto zarade","index":3,"n_rows":26,"n_cols":16,"rows_kept":26,"cut":false,"hidden":false,"merged":[[0,4,0,13],[12,0,12,3],[13,0,14,13],[0,0,0,3],[19,1,19,2]]}
["ZA FIZIČKO LICE",null,null,null,"GODINE (Unijeti broj potrebnih izvršilaca - minimum 5 godina) Unijeti isti broj godina kao u tabeli 2"]
["rb","Naziv radnog mjesta","BRUTO PLATA (mjesečna)","Broj mjeseci rada (max 12)",1,2,3,4,5,6,7,8,9,10]
[1]
[2]
[3]
[4]
[5]
[6]
[7]
[8]
[9]
[10]
["UKUPNO BRUTO PLATA PO GODINAMA",null,null,null,{"$f":"SUMPRODUCT($D$3:$D$12, E3:E12, $C$3:$C$12)","v":0},{"$f":"SUMPRODUCT($D$3:$D$12, F3:F12, $C$3:$C$12)","v":0},{"$f":"SUMPRODUCT($D$3:$D$12, G3:G12, $C$3:$C$12*(100%+$C$21))","v":0},{"$f":"SUMPRODUCT($D$3:$D$12, H3:H12, $C$3:$C$12*(100%+$C$21)^F2)","v":0},{"$f":"SUMPRODUCT($D$3:$D$12, I3:I12, $C$3:$C$12*(100%+$C$21)^G2)","v":0},0,0,0,0,0]
["Upisati: Naziv radnog mjesta, školsku spremu, BRUTO mjesečni iznos plate i broj mjeseci rada tokom godine za to mjesto. Za svaku godinu u sivo obojenim poljima tabele upisati broj izvršilaca za određeno radno mjesto i to po godinama. NAPOMENA: Upisati bruto iznos mjesečne nadoknade, a shodno uputstvu iz word dokumenta"]
[]
[]
[]
[]
[]
[null,"Ispunjava evaluator",null,null,null,null,"  ",null,null,null,null,null,null,null,null,0.01]
[null,"Procenat povećanja",null,null,null,null,null,null,null,null,null,null,null,null,null,1.4999999999999999E-2]
[null,null,null,null,null,null,null,null,null,null,null,null,null,null,null,0.02]
[null,null,null,null,null,null,null,null,null,null,null,null,null,null,null,2.5000000000000001E-2]
[null,null,null,null,null,null,null,null,null,null,null,null,null,null,null,0.03]
[null,null,null,null,null,null,null,null,null,null,null,null,null,null,null,3.5000000000000003E-2]
[null,null,null,null,null,null,null,null,null,null,null,null,null,null,null,0.04]

{"sheet":"Tabela 5 - Amortizacija","index":4,"n_rows":12,"n_cols":15,"rows_kept":12,"cut":false,"hidden":true,"merged":[[0,5,0,14],[10,0,10,4],[4,2,4,4],[4,5,4,14],[11,0,15,14]]}
[null,null,null,null,null,"GODINA"]
["rb","Naziv troška","Procijenjena vrijednost","Vijek trajanja (godine)","Rezidualna vrijednost",1,2,3,4,5,6,7,8,9,10]
[1,"Građevinski objekti",null,null,null,{"$f":"IFERROR((C3-E3)/D3,0)","v":0},{"$f":"F3","v":0},{"$f":"G3","v":0},0,0,{"$f":"IF('Tabela 2 Prihodi'!$I$3>0, J3, 0)","v":0},{"$f":"IF('Tabela 2 Prihodi'!$J$3>0, K3, 0)","v":0},{"$f":"IF('Tabela 2 Prihodi'!$K$3>0, L3, 0)","v":0},{"$f":"IF('Tabela 2 Prihodi'!$L$3>0, M3, 0)","v":0},{"$f":"IF('Tabela 2 Prihodi'!$M$3>0, N3, 0)","v":0}]
[2,"Građevinski objekti (montažni)",null,null,null,{"$f":"IFERROR((C4-E4)/D4,0)","v":0},{"$f":"F4","v":0},0,0,0,{"$f":"IF('Tabela 2 Prihodi'!$I$3>0, J4, 0)","v":0},{"$f":"IF('Tabela 2 Prihodi'!$J$3>0, K4, 0)","v":0},{"$f":"IF('Tabela 2 Prihodi'!$K$3>0, L4, 0)","v":0},{"$f":"IF('Tabela 2 Prihodi'!$L$3>0, M4, 0)","v":0},{"$f":"IF('Tabela 2 Prihodi'!$M$3>0, N4, 0)","v":0}]
[3,"Oprema"]
["3.1.",null,null,null,null,0,{"$f":"F6","v":0},0,0,0,{"$f":"IF('Tabela 2 Prihodi'!$I$3>0, J6, 0)","v":0},{"$f":"IF('Tabela 2 Prihodi'!$J$3>0, K6, 0)","v":0},{"$f":"IF('Tabela 2 Prihodi'!$K$3>0, L6, 0)","v":0},{"$f":"IF('Tabela 2 Prihodi'!$L$3>0, M6, 0)","v":0},{"$f":"IF('Tabela 2 Prihodi'!$M$3>0, N6, 0)","v":0}]
["3.2.",null,null,null,null,0,{"$f":"F7","v":0},0,0,0,{"$f":"IF('Tabela 2 Prihodi'!$I$3>0, J7, 0)","v":0},{"$f":"IF('Tabela 2 Prihodi'!$J$3>0, K7, 0)","v":0},{"$f":"IF('Tabela 2 Prihodi'!$K$3>0, L7, 0)","v":0},{"$f":"IF('Tabela 2 Prihodi'!$L$3>0, M7, 0)","v":0},{"$f":"IF('Tabela 2 Prihodi'!$M$3>0, N7, 0)","v":0}]
["3.3.",null,null,null,null,0,{"$f":"F8","v":0},0,0,0,{"$f":"IF('Tabela 2 Prihodi'!$I$3>0, J8, 0)","v":0},{"$f":"IF('Tabela 2 Prihodi'!$J$3>0, K8, 0)","v":0},{"$f":"IF('Tabela 2 Prihodi'!$K$3>0, L8, 0)","v":0},{"$f":"IF('Tabela 2 Prihodi'!$L$3>0, M8, 0)","v":0},{"$f":"IF('Tabela 2 Prihodi'!$M$3>0, N8, 0)","v":0}]
["3.4.",null,null,null,null,0,{"$f":"F9","v":0},0,0,0,{"$f":"IF('Tabela 2 Prihodi'!$I$3>0, J9, 0)","v":0},{"$f":"IF('Tabela 2 Prihodi'!$J$3>0, K9, 0)","v":0},{"$f":"IF('Tabela 2 Prihodi'!$K$3>0, L9, 0)","v":0},{"$f":"IF('Tabela 2 Prihodi'!$L$3>0, M9, 0)","v":0},{"$f":"IF('Tabela 2 Prihodi'!$M$3>0, N9, 0)","v":0}]
[null,null,null,null,null,0,{"$f":"F10","v":0},0,0,0,{"$f":"IF('Tabela 2 Prihodi'!$I$3>0, J10, 0)","v":0},{"$f":"IF('Tabela 2 Prihodi'!$J$3>0, K10, 0)","v":0},{"$f":"IF('Tabela 2 Prihodi'!$K$3>0, L10, 0)","v":0},{"$f":"IF('Tabela 2 Prihodi'!$L$3>0, M10, 0)","v":0},{"$f":"IF('Tabela 2 Prihodi'!$M$3>0, N10, 0)","v":0}]
["UKUPNO AMORTIZACIJA PO GODINAMA",null,null,null,null,{"$f":"SUM(F3:F10)","v":0},{"$f":"SUM(G3:G10)","v":0},0,0,0,0,0,0,0,0]
["Unijeti podatak o vrijednosti objekata (knjigovodstvena za objekte ili opremu koju investitor već posjeduje, procijenjena vrijednost ili vrijednost iz projekta i profaktura za novu opremu i objekte), vijek trajanja u godinama, kao i rezidulnu vrijednost . Rezidualna vrijednost je vrijednost nakon isteka vijeka trajanja. Ukoliko investitor posjeduje više stavki opreme - grupisati istu shodno amortizacionim grupama (vijeku trajanja).  Obračun amortizacije se vrši za broj godina shodno planu prihoda iz tabele 2 (ukoliko je broj godina za prihode 6 godina, obračun amortizacije se vrši za 6 godina). "]

{"sheet":"Tabela 6 - Plan otplate kredita","index":5,"n_rows":10,"n_cols":20,"rows_kept":10,"cut":false,"hidden":false,"merged":[[1,9,1,18],[0,8,0,18],[6,9,6,17],[5,0,7,3]]}
["Unijeti iznos kredita",0,null,null,null,{"$f":"PMT(B2/12,B3,-B1)","v":{"$error":"#NUM!"}},null,null,"TABELA BROJ 6  NAPOMENA: Ovu tabelu ubaciti u word dokument - Biznis plan u podnaslov 6.4."]
["Kamatna stopa",0,null,null,null,{"$f":"IPMT(B2/12,A9,B3,-B1)","v":{"$error":"#NUM!"}},null,null,null,"GODINE"]
["Period otplate - broj mjeseci ",0,null,null,null,null,null,null,null,1,2,3,4,5,6,7,8,9,10,"UKUPNO"]
["Grejs period - broj mjeseci",0,null,null,null,null,null,null,"Kamata",{"$f":"SUM(D11:D22)","v":0},{"$f":"SUM(D23:D34)","v":0},{"$f":"SUM(D35:D46)","v":0},{"$f":"SUM(D47:D58)","v":0},{"$f":"SUM(D59:D70)","v":0},{"$f":"SUM(D71:D82)","v":0},{"$f":"SUM(D83:D94)","v":0},{"$f":"SUM(D95:D106)","v":0},{"$f":"SUM(D107:D118)","v":0},{"$f":"SUM(D119:D130)","v":0}]
[null,null,null,null,null,null,null,null,"Anuitet",{"$f":"SUM(B11:B22)","v":0},{"$f":"SUM(B23:B34)","v":0},{"$f":"SUM(B35:B46)","v":0},{"$f":"SUM(B47:B58)","v":0},{"$f":"SUM(B59:B70)","v":0},{"$f":"SUM(B71:B82)","v":0},{"$f":"SUM(B83:B94)","v":0},{"$f":"SUM(B95:B106)","v":0},{"$f":"SUM(B107:B118)","v":0},{"$f":"SUM(B119:B130)","v":0}]
["Nakon upisa podataka u žuta polja, kliknuti dugme \"KREDIT\". U word ubaciti samo tabelu sa desne strane. "]
[]
[]
[1]
["Period broj","Anuitet","Otplata","Kamata"]

{"sheet":"Tabela 7 - Ostali troškovi","index":6,"n_rows":15,"n_cols":12,"rows_kept":15,"cut":false,"hidden":false,"merged":[[0,2,0,11],[13,0,13,1],[9,2,9,11],[14,0,15,11]]}
[null,null,"Upisati godišnji iznos troškova (MINIMUM 5 godina) Unijeti isti broj godina kao u tabeli 2"]
["rb","Naziv troška",1,2,3,4,5,6,7,8,9,10]
[1,"Troškovi održavanja"]
[2,"Struja"]
[3,"Voda"]
[4,"PTT troškovi"]
[5,"Marketing"]
[6,"Intelektualne usluge"]
[7,"Osiguranje"]
[8,"Ostalo: "]
[8.1]
[8.1999999999999993]
[8.3000000000000007]
["Ukupno",null,{"$f":"SUM(C3:C13)","v":0},{"$f":"SUM(D3:D13)","v":0},0,0,0,0,0,0,0,0]
["*Ovdje procijeniti troškove održavanja opreme i građevinskih objekata (s obzirom da fizička lica ne projektuju trošak amortizacije)"]

{"sheet":"Tabela 8 -Projekcija bilansa ","index":7,"n_rows":13,"n_cols":11,"rows_kept":13,"cut":false,"hidden":false,"merged":[[0,1,0,10]]}
[null,"GODINA"]
["NAZIV",1,2,3,4,5,6,7,8,9,10]
["ukupan prihod",{"$f":"'Tabela 2 Prihodi'!D18","v":0},{"$f":"'Tabela 2 Prihodi'!E18","v":0},{"$f":"'Tabela 2 Prihodi'!F18","v":0},{"$f":"'Tabela 2 Prihodi'!G18","v":0},{"$f":"'Tabela 2 Prihodi'!H18","v":0},{"$f":"'Tabela 2 Prihodi'!I18","v":0},{"$f":"'Tabela 2 Prihodi'!J18","v":0},{"$f":"'Tabela 2 Prihodi'!K18","v":0},{"$f":"'Tabela 2 Prihodi'!L18","v":0},{"$f":"'Tabela 2 Prihodi'!M18","v":0}]
["ukupni rashodi",{"$f":"SUM(B5:B9)","v":0},{"$f":"SUM(C5:C9)","v":0},0,0,0,0,0,0,0,0]
["Materijalni troškovi",{"$f":"'Tabela  3 - Mat. troškovi'!D14","v":0},{"$f":"'Tabela  3 - Mat. troškovi'!E14","v":0},{"$f":"'Tabela  3 - Mat. troškovi'!F14","v":0},{"$f":"'Tabela  3 - Mat. troškovi'!G14","v":0},{"$f":"'Tabela  3 - Mat. troškovi'!H14","v":0},{"$f":"'Tabela  3 - Mat. troškovi'!I14","v":0},{"$f":"'Tabela  3 - Mat. troškovi'!J14","v":0},{"$f":"'Tabela  3 - Mat. troškovi'!K14","v":0},{"$f":"'Tabela  3 - Mat. troškovi'!L14","v":0},{"$f":"'Tabela  3 - Mat. troškovi'!M14","v":0}]
["Bruto zarade",{"$f":"'Tabela 4 - Bruto zarade'!E13","v":0},{"$f":"'Tabela 4 - Bruto zarade'!F13","v":0},{"$f":"'Tabela 4 - Bruto zarade'!G13","v":0},{"$f":"'Tabela 4 - Bruto zarade'!H13","v":0},{"$f":"'Tabela 4 - Bruto zarade'!I13","v":0},{"$f":"'Tabela 4 - Bruto zarade'!J13","v":0},{"$f":"'Tabela 4 - Bruto zarade'!K13","v":0},{"$f":"'Tabela 4 - Bruto zarade'!L13","v":0},{"$f":"'Tabela 4 - Bruto zarade'!M13","v":0},{"$f":"'Tabela 4 - Bruto zarade'!N13","v":0}]
["Amortizacija",{"$f":"'Tabela 5 - Amortizacija'!F11","v":0},{"$f":"'Tabela 5 - Amortizacija'!G11","v":0},{"$f":"'Tabela 5 - Amortizacija'!H11","v":0},{"$f":"'Tabela 5 - Amortizacija'!I11","v":0},{"$f":"'Tabela 5 - Amortizacija'!J11","v":0},{"$f":"'Tabela 5 - Amortizacija'!K11","v":0},{"$f":"'Tabela 5 - Amortizacija'!L11","v":0},{"$f":"'Tabela 5 - Amortizacija'!M11","v":0},{"$f":"'Tabela 5 - Amortizacija'!N11","v":0},{"$f":"'Tabela 5 - Amortizacija'!O11","v":0}]
["Kamata",{"$f":"'Tabela 6 - Plan otplate kredita'!J4","v":0},{"$f":"'Tabela 6 - Plan otplate kredita'!K4","v":0},{"$f":"'Tabela 6 - Plan otplate kredita'!L4","v":0},{"$f":"'Tabela 6 - Plan otplate kredita'!M4","v":0},{"$f":"'Tabela 6 - Plan otplate kredita'!N4","v":0},{"$f":"'Tabela 6 - Plan otplate kredita'!O4","v":0},{"$f":"'Tabela 6 - Plan otplate kredita'!P4","v":0},{"$f":"'Tabela 6 - Plan otplate kredita'!Q4","v":0},{"$f":"'Tabela 6 - Plan otplate kredita'!R4","v":0},{"$f":"'Tabela 6 - Plan otplate kredita'!S4","v":0}]
["Ostali troškovi",{"$f":"'Tabela 7 - Ostali troškovi'!C14","v":0},{"$f":"'Tabela 7 - Ostali troškovi'!D14","v":0},{"$f":"'Tabela 7 - Ostali troškovi'!E14","v":0},{"$f":"'Tabela 7 - Ostali troškovi'!F14","v":0},{"$f":"'Tabela 7 - Ostali troškovi'!G14","v":0},{"$f":"'Tabela 7 - Ostali troškovi'!H14","v":0},{"$f":"'Tabela 7 - Ostali troškovi'!I14","v":0},{"$f":"'Tabela 7 - Ostali troškovi'!J14","v":0},{"$f":"'Tabela 7 - Ostali troškovi'!K14","v":0},{"$f":"'Tabela 7 - Ostali troškovi'!L14","v":0}]
["BRUTO dob ",{"$f":"B3-B4","v":0},{"$f":"C3-C4","v":0},0,0,0,0,0,0,0,0]
["Porez na dobit 9%",{"$f":"9*B10/100","v":0},0,0,0,0,0,0,0,0,0]
["Neto dobit",{"$f":"B10-B11","v":0},0,0,0,0,0,0,0,0,0]
["profitna stopa",{"$f":"IFERROR((B12/B3),0)","v":0},{"$f":"IFERROR((C12/C3),0)","v":0},0,0,0,0,0,0,0,0]

{"sheet":"Tabela 9 Ekonomski tok","index":8,"n_rows":9,"n_cols":12,"rows_kept":9,"cut":false,"hidden":false,"merged":[[0,2,0,11]]}
[null,null,"GODINA"]
[null,"NAZIV",1,2,3,4,5,6,7,8,9,10]
["I","PRILIVI",{"$f":"C4","v":0},{"$f":"D4","v":0},0,0,0,0,0,0,0,0]
[1,"Ukupan prihod",{"$f":"'Tabela 8 -Projekcija bilansa '!B3","v":0},{"$f":"'Tabela 8 -Projekcija bilansa '!C3","v":0},{"$f":"'Tabela 8 -Projekcija bilansa '!D3","v":0},{"$f":"'Tabela 8 -Projekcija bilansa '!E3","v":0},{"$f":"'Tabela 8 -Projekcija bilansa '!F3","v":0},{"$f":"'Tabela 8 -Projekcija bilansa '!G3","v":0},{"$f":"'Tabela 8 -Projekcija bilansa '!H3","v":0},{"$f":"'Tabela 8 -Projekcija bilansa '!I3","v":0},{"$f":"'Tabela 8 -Projekcija bilansa '!J3","v":0},{"$f":"'Tabela 8 -Projekcija bilansa '!K3","v":0}]
["II","ODLIVI",{"$f":"SUM(C6:C8)","v":0},{"$f":"SUM(D6:D8)","v":0},{"$f":"SUM(E6:E8)","v":0},{"$f":"SUM(F6:F8)","v":0},{"$f":"SUM(G6:G8)","v":0},{"$f":"SUM(H6:H8)","v":0},0,0,0,0]
[3,"Investiciona ulaganja",{"$f":"'Tabela 1 Struktura ulaganja'!E4","v":0}]
[4,"Materijalni i nematerijalni troškovi",{"$f":"'Tabela 8 -Projekcija bilansa '!B5+'Tabela 8 -Projekcija bilansa '!B8+'Tabela 8 -Projekcija bilansa '!B9","v":0},{"$f":"'Tabela 8 -Projekcija bilansa '!C5+'Tabela 8 -Projekcija bilansa '!C8+'Tabela 8 -Projekcija bilansa '!C9","v":0},{"$f":"'Tabela 8 -Projekcija bilansa '!D5+'Tabela 8 -Projekcija bilansa '!D8+'Tabela 8 -Projekcija bilansa '!D9","v":0},{"$f":"'Tabela 8 -Projekcija bilansa '!E5+'Tabela 8 -Projekcija bilansa '!E8+'Tabela 8 -Projekcija bilansa '!E9","v":0},{"$f":"'Tabela 8 -Projekcija bilansa '!F5+'Tabela 8 -Projekcija bilansa '!F8+'Tabela 8 -Projekcija bilansa '!F9","v":0},{"$f":"'Tabela 8 -Projekcija bilansa '!G5+'Tabela 8 -Projekcija bilansa '!G8+'Tabela 8 -Projekcija bilansa '!G9","v":0},{"$f":"'Tabela 8 -Projekcija bilansa '!H5+'Tabela 8 -Projekcija bilansa '!H8+'Tabela 8 -Projekcija bilansa '!H9","v":0},{"$f":"'Tabela 8 -Projekcija bilansa '!I5+'Tabela 8 -Projekcija bilansa '!I8+'Tabela 8 -Projekcija bilansa '!I9","v":0},{"$f":"'Tabela 8 -Projekcija bilansa '!J5+'Tabela 8 -Projekcija bilansa '!J8+'Tabela 8 -Projekcija bilansa '!J9","v":0},{"$f":"'Tabela 8 -Projekcija bilansa '!K5+'Tabela 8 -Projekcija bilansa '!K8+'Tabela 8 -Projekcija bilansa '!K9","v":0}]
[5,"Bruto zarade",{"$f":"'Tabela 8 -Projekcija bilansa '!B6","v":0},{"$f":"'Tabela 8 -Projekcija bilansa '!C6","v":0},{"$f":"'Tabela 8 -Projekcija bilansa '!D6","v":0},{"$f":"'Tabela 8 -Projekcija bilansa '!E6","v":0},{"$f":"'Tabela 8 -Projekcija bilansa '!F6","v":0},{"$f":"'Tabela 8 -Projekcija bilansa '!G6","v":0},{"$f":"'Tabela 8 -Projekcija bilansa '!H6","v":0},{"$f":"'Tabela 8 -Projekcija bilansa '!I6","v":0},{"$f":"'Tabela 8 -Projekcija bilansa '!J6","v":0},{"$f":"'Tabela 8 -Projekcija bilansa '!K6","v":0}]
["III","NETO PRIMICI",{"$f":"C3-C5","v":0},{"$f":"D3-D5","v":0},{"$f":"E3-E5","v":0},{"$f":"F3-F5","v":0},{"$f":"G3-G5","v":0},{"$f":"H3-H5","v":0},0,0,0,0]

{"sheet":"Tabela 10 - NSV","index":9,"n_rows":12,"n_cols":5,"rows_kept":12,"cut":false,"hidden":false,"merged":[]}
["godina","neto priliv","diskontni faktor 8%","diskontovani neto priliv","NSV V godina"]
[1,{"$f":"'Tabela 9 Ekonomski tok'!C9","v":0},1,{"$f":"B2*C2","v":0}]
[2,{"$f":"'Tabela 9 Ekonomski tok'!D9","v":0},0.92592592592592582,0]
[3,{"$f":"'Tabela 9 Ekonomski tok'!E9","v":0},0.85733882030178321,0]
[4,{"$f":"'Tabela 9 Ekonomski tok'!F9","v":0},0.79383224102016958,0]
[5,{"$f":"'Tabela 9 Ekonomski tok'!G9","v":0},0.73502985279645328,0,{"$f":"SUM(D2:D6)","v":0}]
[6,{"$f":"'Tabela 9 Ekonomski tok'!H9","v":0},0.68058319703375303,0]
[7,{"$f":"'Tabela 9 Ekonomski tok'!I9","v":0},0.63016962688310452,0]
[8,{"$f":"'Tabela 9 Ekonomski tok'!J9","v":0},0.58349039526213387,0]
[9,{"$f":"'Tabela 9 Ekonomski tok'!K9","v":0},0.54026888450197574,0]
[10,{"$f":"'Tabela 9 Ekonomski tok'!L9","v":0},0.50024896713145905,0]
["UKUPNO",{"$f":"SUM(B2:B11)","v":0},null,{"$f":"SUM(D2:D11)","v":0}]

{"sheet":"Tabela 11 IRR","index":10,"n_rows":12,"n_cols":3,"rows_kept":12,"cut":false,"hidden":true,"merged":[[1,2,10,2]]}
["Godina","Neto prihod iz ekonomskog toka","IRR"]
[1,{"$f":"'Tabela 10 - NSV'!B2","v":0},{"$f":"IFERROR(IRR(B2:B11),0)","v":0}]
[2,{"$f":"'Tabela 10 - NSV'!B3","v":0}]
[3,{"$f":"'Tabela 10 - NSV'!B4","v":0}]
[4,{"$f":"'Tabela 10 - NSV'!B5","v":0}]
[5,{"$f":"'Tabela 10 - NSV'!B6","v":0}]
[6,{"$f":"'Tabela 10 - NSV'!B7","v":0}]
[7,{"$f":"'Tabela 10 - NSV'!B8","v":0}]
[8,{"$f":"'Tabela 10 - NSV'!B9","v":0}]
[9,{"$f":"'Tabela 10 - NSV'!B10","v":0}]
[10,{"$f":"'Tabela 10 - NSV'!B11","v":0}]
["UKUPNO",{"$f":"SUM(B2:B11)","v":0}]

{"sheet":"Tabela 11 - Period povrata","index":11,"n_rows":12,"n_cols":6,"rows_kept":12,"cut":false,"hidden":false,"merged":[[0,1,0,2],[0,3,0,4],[0,5,1,5]]}
["Godina","Ukupna investiciona ulaganja",null,"Iznos akumulacije",null,"RAZLIKA"]
[null,"po godinama","Kumulativ I (vrijednost ukupne investicije)","Po godinama (vrijednost iz ekonomskog toka)","Kumulativ   II"]
[1,{"$f":"'Tabela 9 Ekonomski tok'!C6","v":0},{"$f":"$B$3","v":0},{"$f":"'Tabela 11 IRR'!B2","v":0},0,{"$f":"E3-C3","v":0}]
[2,null,0,{"$f":"'Tabela 11 IRR'!B3","v":0},{"$f":"D4+E3","v":0},0]
[3,null,0,{"$f":"'Tabela 11 IRR'!B4","v":0},0,0]
[4,null,0,{"$f":"'Tabela 11 IRR'!B5","v":0},0,0]
[5,null,0,{"$f":"'Tabela 11 IRR'!B6","v":0},0,0]
[6,null,0,{"$f":"'Tabela 11 IRR'!B7","v":0},{"$f":"D8+E7","v":0},{"$f":"E8-C8","v":0}]
[7,null,0,{"$f":"'Tabela 11 IRR'!B8","v":0},0,0]
[8,null,0,{"$f":"'Tabela 11 IRR'!B9","v":0},0,0]
[9,null,0,{"$f":"'Tabela 11 IRR'!B10","v":0},0,0]
[10,null,0,{"$f":"'Tabela 11 IRR'!B11","v":0},0,0]

{"sheet":"Tabela 12 - Finansijski tok","index":12,"n_rows":13,"n_cols":12,"rows_kept":13,"cut":false,"hidden":false,"merged":[[0,2,0,11]]}
[null,null,"GODINA"]
[null,"NAZIV",1,2,3,4,5,6,7,8,9,10]
["I","PRILIVI",{"$f":"SUM(C4:C5)","v":0},{"$f":"D4","v":0},0,0,0,0,0,0,0,0]
[1,"Ukupan prihod",{"$f":"'Tabela 9 Ekonomski tok'!C4","v":0},{"$f":"'Tabela 9 Ekonomski tok'!D4","v":0},{"$f":"'Tabela 9 Ekonomski tok'!E4","v":0},{"$f":"'Tabela 9 Ekonomski tok'!F4","v":0},{"$f":"'Tabela 9 Ekonomski tok'!G4","v":0},{"$f":"'Tabela 9 Ekonomski tok'!H4","v":0},{"$f":"'Tabela 9 Ekonomski tok'!I4","v":0},{"$f":"'Tabela 9 Ekonomski tok'!J4","v":0},{"$f":"'Tabela 9 Ekonomski tok'!K4","v":0},{"$f":"'Tabela 9 Ekonomski tok'!L4","v":0}]
[2,"Izvori finansiranja",{"$f":"SUM(C6:C7)","v":0}]
["2.1.","Sopstvena sredstva",{"$f":"'Tabela 1 Struktura ulaganja'!D4","v":0}]
["2.2.","Kredit",{"$f":"'Tabela 1 Struktura ulaganja'!C4","v":0}]
["II","ODLIVI",{"$f":"SUM(C9:C12)","v":0},{"$f":"SUM(D9:D12)","v":0},0,0,0,0,0,0,0,0]
[3,"Investiciona ulaganja",{"$f":"'Tabela 9 Ekonomski tok'!C6","v":0}]
[4,"Materijalni i nematerijalni troškovi",{"$f":"'Tabela 9 Ekonomski tok'!C7","v":0},{"$f":"'Tabela 9 Ekonomski tok'!D7","v":0},{"$f":"'Tabela 9 Ekonomski tok'!E7","v":0},{"$f":"'Tabela 9 Ekonomski tok'!F7","v":0},{"$f":"'Tabela 9 Ekonomski tok'!G7","v":0},{"$f":"'Tabela 9 Ekonomski tok'!H7","v":0},{"$f":"'Tabela 9 Ekonomski tok'!I7","v":0},{"$f":"'Tabela 9 Ekonomski tok'!J7","v":0},{"$f":"'Tabela 9 Ekonomski tok'!K7","v":0},{"$f":"'Tabela 9 Ekonomski tok'!L7","v":0}]
[5,"Bruto zarade",{"$f":"'Tabela 9 Ekonomski tok'!C8","v":0},{"$f":"'Tabela 9 Ekonomski tok'!D8","v":0},{"$f":"'Tabela 9 Ekonomski tok'!E8","v":0},{"$f":"'Tabela 9 Ekonomski tok'!F8","v":0},{"$f":"'Tabela 9 Ekonomski tok'!G8","v":0},{"$f":"'Tabela 9 Ekonomski tok'!H8","v":0},{"$f":"'Tabela 9 Ekonomski tok'!I8","v":0},{"$f":"'Tabela 9 Ekonomski tok'!J8","v":0},{"$f":"'Tabela 9 Ekonomski tok'!K8","v":0},{"$f":"'Tabela 9 Ekonomski tok'!L8","v":0}]
[6,"Anuiteti",{"$f":"'Tabela 6 - Plan otplate kredita'!J5","v":0},{"$f":"'Tabela 6 - Plan otplate kredita'!K5","v":0},{"$f":"'Tabela 6 - Plan otplate kredita'!L5","v":0},{"$f":"'Tabela 6 - Plan otplate kredita'!M5","v":0},{"$f":"'Tabela 6 - Plan otplate kredita'!N5","v":0},{"$f":"'Tabela 6 - Plan otplate kredita'!O5","v":0},{"$f":"'Tabela 6 - Plan otplate kredita'!P5","v":0},{"$f":"'Tabela 6 - Plan otplate kredita'!Q5","v":0},{"$f":"'Tabela 6 - Plan otplate kredita'!R5","v":0},{"$f":"'Tabela 6 - Plan otplate kredita'!S5","v":0}]
["III","NETO PRIMICI",{"$f":"C3-C8","v":0},{"$f":"D3-D8","v":0},{"$f":"E3-E8","v":0},{"$f":"F3-F8","v":0},{"$f":"G3-G8","v":0},{"$f":"H3-H8","v":0},0,0,0,0]